bitfinex-derivatives/quotes_SOLF0:USTF0_20250105
["timestamp","ask_amount","ask_price","bid_price","bid_amount"]
[1736111869683,7.43766,213.24,213.17,7.43766]
[1736111869881,7.43766,213.26,213.23,2.3452]
[1736111870189,2.58,213.24,213.23,2.3452]
[1736111871887,7.43766,213.26,213.25,2.345]
[1736111872186,10.01766,213.26,213.25,2.345]
[1736111874481,7.43766,213.26,213.25,2.345]
[1736111874685,2.58,213.26,213.22,2.3452]
[1736111874885,2.58,213.26,213.21,7.43766]
[1736111875081,52.34747071,213.31,213.21,7.43766]
[1736111875275,2.58,213.3,213.29,2.3445]
[1736111877786,50.00317071,213.31,213.29,2.3445]
[1736111877982,10.01766,213.3,213.29,2.3445]
[1736111879179,10.01766,213.3,213.28,2.3446]
[1736111880481,2.3446,213.29,213.23,2.3452]
[1736111880785,7.43766,213.25,213.2,96.06500106]
[1736111880981,2.58,213.24,213.2,96.06500106]
[1736111881287,2.58,213.24,213.23,2.3452]
[1736111883585,2.58,213.25,213.2,96.06500106]
[1736111885489,2.58,213.25,213.24,2.3451]
[1736111891489,2.58,213.25,213.24,9.78276]
[1736111892886,2.58,213.25,213.24,2.3451]
[1736111922624,10.01766,213.29,213.27,2.3446]
[1736111924332,10.01766,213.29,213.28,2.3446]
[1736111930235,55.1147,213.41,213.24,7.43766]
[1736111930433,7.43766,213.33,213.31,2.3443]
[1736111930633,2.58,213.32,213.31,2.3443]
[1736111932837,7.43766,213.33,213.31,2.3443]
[1736111933036,2.58,213.32,213.31,2.3443]
[1736111936541,4.9242,213.32,213.28,2.3446]
[1736111936838,7.43766,213.29,213.23,93.21258042]
[1736111937045,7.43766,213.27,213.23,93.21258042]
[1736111937233,2.58,213.26,213.23,93.21258042]
[1736111938038,7.43766,213.25,213.23,2.3452]
[1736111938248,7.43766,213.25,213.2,2.7988]
[1736111938444,7.43766,213.22,213.16,1.521]
[1736111938647,7.43766,213.22,213.15,33.54692013]
[1736111939344,7.43766,213.22,213.17,7.43766]
[1736111939544,7.43766,213.22,213.21,2.3454]
[1736111939743,7.43766,213.24,213.17,7.43766]
[1736111940447,7.43766,213.24,213.22,2.3453]
[1736111944649,7.43766,213.24,213.23,2.3452]
[1736111948153,10.01766,213.26,213.24,2.345]
[1736111948951,10.01766,213.26,213.25,2.345]
[1736111951354,7.43766,213.28,213.21,7.43766]
[1736111951656,7.43766,213.28,213.27,2.3447]
[1736111951857,10.01766,213.28,213.27,2.3447]
[1736111957963,10.01766,213.28,213.25,2.3449]
[1736111958555,2.58,213.29,213.25,7.43766]
[1736111959563,2.918,213.35,213.25,7.43766]
[1736111959860,7.43766,213.33,213.25,7.43766]
[1736111960060,7.43766,213.33,213.3,2.3443]
[1736111960854,7.43766,213.34,213.32,2.3442]
[1736111961055,2.58,213.33,213.32,2.3442]
[1736111961960,55.95044569,213.36,213.34,2.344]
[1736111962163,2.58,213.35,213.27,7.43766]
[1736111962361,7.43766,213.34,213.26,1.4086]
[1736111962565,7.43766,213.32,213.3,2.3444]
[1736111964063,7.43766,213.32,213.29,2.3445]
[1736111966361,7.43766,213.3,213.29,2.3445]
[1736111966563,10.01766,213.3,213.29,2.3445]
[1736111966862,10.01766,213.3,213.25,2.345]
[1736111967166,7.43766,213.26,213.22,2.871]
[1736111967662,2.58,213.25,213.24,2.345]
[1736111972762,2.58,213.25,213.2,7.43766]
[1736111973069,2.58,213.25,213.22,2.3452]
[1736111974168,2.58,213.25,213.2,7.43766]
[1736111974363,2.58,213.25,213.23,2.3452]
[1736111975071,2.58,213.25,213.24,2.3451]
[1736112003799,2.58,213.25,213.18,1.4308]
[1736112004105,7.43766,213.21,213.16,45.69175828]
[1736112005306,7.43766,213.21,213.16,2.8982]
[1736112005601,7.43766,213.21,213.2,2.3455]
[1736112011401,2.58,213.25,213.17,7.43766]
[1736112011601,10.01766,213.25,213.17,7.43766]
[1736112012504,10.01766,213.25,213.23,2.3452]
[1736112015903,10.01766,213.25,213.16,2.8982]
[1736112016099,10.01766,213.25,213.24,2.3451]
[1736112017004,2.58,213.25,213.24,2.3451]
[1736112017508,10.01766,213.25,213.24,2.3451]
[1736112020311,2.3445,213.29,213.17,7.43766]
[1736112020609,2.58,213.28,213.24,2.3451]
[1736112020810,2.58,213.28,213.16,2.8982]
[1736112022404,2.58,213.28,213.25,2.3449]
[1736112022607,7.43766,213.26,213.25,2.3449]
[1736112027107,2.3443,213.31,213.26,2.3448]
[1736112027305,7.43766,213.27,213.26,2.3448]
[1736112030309,2.58,213.3,213.19,7.43766]
[1736112030509,2.3442,213.32,213.21,7.43766]
[1736112030716,2.9513,213.35,213.25,7.43766]
[1736112030909,7.43766,213.32,213.25,7.43766]
[1736112031211,7.43766,213.3,213.17,4.6916]
[1736112031410,2.58,213.29,213.17,4.6916]
[1736112031613,2.58,213.29,213.22,7.43766]
[1736112031913,2.58,213.29,213.28,2.3446]
[1736112033713,7.43766,213.3,213.29,2.3445]
[1736112033913,10.01766,213.3,213.29,2.3445]
[1736112035115,10.01766,213.3,213.27,2.3446]
[1736112035423,7.43766,213.28,213.27,2.3446]
[1736112037111,7.43766,213.28,213.25,2.3449]
[1736112037315,7.43766,213.26,213.25,2.3449]
[1736112041319,2.58,213.3,213.21,7.43766]
[1736112041520,2.58,213.3,213.29,2.3445]
[1736112045326,10.01766,213.3,213.29,2.3445]
[1736112049231,10.01766,213.3,213.28,2.3446]
[1736112049426,7.43766,213.29,213.28,2.3446]
[1736112059037,2.58,213.3,213.29,2.3445]
[1736112059239,7.43766,213.31,213.22,7.43766]
[1736112059428,2.58,213.3,213.23,4.3673]
[1736112060036,2.58,213.3,213.29,2.3445]
[1736112061437,2.58,213.3,213.23,4.3673]
[1736112061634,7.43766,213.26,213.23,4.3673]
[1736112062543,7.43766,213.26,213.25,2.345]
[1736112066552,2.58,213.27,213.26,2.3449]
[1736112066735,10.01766,213.27,213.26,2.3449]
[1736112069037,10.01766,213.27,213.25,2.3449]
[1736112069234,7.43766,213.26,213.25,2.3449]
[1736112069639,7.43766,213.26,213.2,96.4583432]
[1736112069839,7.43766,213.21,213.2,96.4583432]
[1736112071448,7.43766,213.21,213.2,98.8038432]
[1736112077752,2.58,213.22,213.21,2.3454]
[1736112091769,2.9469,213.29,213.25,2.3449]
[1736112091973,7.43766,213.26,213.25,2.3449]
[1736112095865,8.19520949,213.26,213.17,2.3458]
[1736112096067,7.43766,213.18,213.17,2.3458]
[1736112096267,10.01766,213.18,213.17,2.3458]
[1736112097165,10.01766,213.18,213.15,2.346]
[1736112097366,7.43766,213.16,213.15,2.346]
[1736112100172,7.43766,213.16,213.11,2.3464]
[1736112100377,7.43766,213.13,213.11,2.3464]
[1736112100570,2.58,213.12,213.11,2.3464]
[1736112105269,2.58,213.12,213.1,2.3466]
[1736112105477,7.43766,213.11,213.01,2.9021]
[1736112105680,7.43766,213.08,213.01,10.33976]
[1736112106675,2.58,213.12,213.07,2.3468]
[1736112107069,4.9264,213.12,213.07,2.3468]
[1736112107279,2.58,213.12,213.03,91.84822487]
[1736112107478,2.58,213.12,213.08,2.3468]
[1736112108574,2.58,213.12,213.09,2.3467]
[1736112108774,7.43766,213.1,213.09,2.3467]
[1736112114781,2.58,213.12,213.03,91.84822487]
[1736112114984,2.58,213.12,213.11,2.3465]
[1736112117584,10.01766,213.12,213.09,2.3467]
[1736112117785,7.43766,213.1,213.09,2.3467]
[1736112121695,2.58,213.12,213.1,2.3465]
[1736112121892,7.43766,213.11,213.1,2.3465]
[1736112122087,10.01766,213.11,213.1,2.3465]
[1736112125294,50.14860248,213.17,213.13,2.3463]
[1736112125593,7.43766,213.14,213.13,2.3463]
[1736112126191,2.58,213.16,213.06,7.43766]
[1736112126388,2.58,213.16,213.15,2.3461]
[1736112126594,10.01766,213.16,213.15,2.3461]
[1736112128294,10.01766,213.16,213.14,2.3462]
[1736112128496,7.43766,213.15,213.14,2.3462]
[1736112129186,7.43766,213.15,213.06,7.43766]
[1736112129394,7.43766,213.1,213.07,1.4872]
[1736112129594,7.43766,213.08,213.07,1.4872]
[1736112130395,7.43766,213.08,213.07,3.8341]
[1736112132099,7.43766,213.08,213.07,2.3469]
[1736112146408,2.58,213.1,213.07,2.3469]
[1736112146609,7.43766,213.08,213.07,2.3469]
[1736112150014,10.01766,213.08,213.07,2.3469]
[1736112155215,7.43766,213.08,213.07,2.3469]
[1736112157313,2.58,213.09,213.08,2.3468]
[1736112157514,7.43766,213.09,213.08,2.3468]
[1736112157719,10.01766,213.09,213.08,2.3468]
[1736112160028,2.58,213.09,213.08,2.3468]
[1736112160229,10.01766,213.09,213.08,2.3468]
[1736112175833,10.01766,213.09,213.01,2.9021]
[1736112176136,10.01766,213.09,213.07,2.3469]
[1736112176337,10.01766,213.09,213.01,2.9021]
[1736112176537,7.43766,213.07,213.01,2.9021]
[1736112176736,7.43766,213.03,213.0,26.10926013]
[1736112176929,7.43766,213.01,213.0,26.10926013]
[1736112177133,7.43766,213.01,213.0,6.52731503]
[1736112178540,7.43766,213.01,212.97,105.64580275]
[1736112178541,7.43766,213.01,212.97,2.348]
[1736112178742,7.43766,212.98,212.97,2.348]
[1736112178944,12.36566,212.98,212.93,6.52731503]
[1736112179140,7.43766,212.94,212.92,6.52731503]
[1736112180646,7.43766,212.95,212.87,10.42396]
[1736112181142,2.58,213.0,212.99,2.3478]
[1736112181637,2.58,213.0,212.99,2.31038834]
[1736112181843,2.58,213.0,212.91,104.80337625]
[1736112182041,7.43766,212.97,212.91,104.80337625]
[1736112182641,7.43766,212.97,212.96,2.3482]
[1736112184942,7.43766,212.97,212.91,97.36571625]
[1736112185246,2.3479,212.98,212.93,2.3485]
[1736112185641,4.9278,213.0,212.95,2.3482]
[1736112186043,2.58,213.0,212.95,2.3482]
[1736112186247,2.58,213.0,212.96,2.3481]
[1736112186440,7.43766,212.97,212.96,2.3481]
[1736112188548,10.01766,212.97,212.96,2.3481]
[1736112192549,2.58,212.97,212.96,2.3481]
[1736112192744,2.58,212.97,212.91,97.36571625]
[1736112192946,10.01766,212.97,212.91,104.80337625]
[1736112193847,2.3474,213.04,213.0,2.3477]
[1736112194045,7.43766,213.02,212.95,7.43766]
[1736112194254,7.43766,213.04,212.97,7.43766]
[1736112194449,2.58,213.03,212.98,2.3479]
[1736112194649,2.58,213.04,212.99,7.43766]
[1736112195349,6.06250564,213.06,213.05,2.3472]
[1736112195548,2.58,213.1,213.03,7.43766]
[1736112195948,2.58,213.1,213.0,1.5105]
[1736112195949,1.4451,213.18,213.05,7.43766]
[1736112196145,7.43766,213.11,213.06,2.347]
[1736112196353,7.43766,213.11,213.05,7.43766]
[1736112196753,7.43766,213.11,213.09,2.3467]
[1736112202258,2.58,213.12,213.09,2.3467]
[1736112202460,2.58,213.12,213.1,2.3466]
[1736112202661,7.43766,213.11,213.1,2.3466]
[1736112204769,7.43766,213.11,213.05,2.3471]
[1736112204959,7.43766,213.11,213.03,7.43766]
[1736112206570,7.43766,213.11,213.1,2.3466]
[1736112210464,1.4451,213.18,213.15,2.3461]
[1736112210663,1.4459,213.2,213.07,7.43766]
[1736112210866,79.16797942,213.24,213.11,7.43766]
[1736112211068,7.43766,213.19,213.18,2.3457]
[1736112214671,2.6,213.23,213.13,7.43766]
[1736112214865,10.03766,213.23,213.15,7.43766]
[1736112215070,7.43766,213.23,213.17,7.43766]
[1736112215372,2.6,213.25,213.23,2.3452]
[1736112215575,7.43766,213.24,213.23,2.3452]
[1736112219775,7.43766,213.24,213.12,92.0379377]
[1736112219976,7.43766,213.18,213.12,99.4755977]
[1736112220275,7.43766,213.2,213.19,2.3456]
[1736112231675,7.43766,213.22,213.21,2.3454]
[1736112231879,2.6,213.25,213.17,7.43766]
[1736112232079,10.03766,213.25,213.17,7.43766]
[1736112233484,10.03766,213.25,213.24,2.3451]
[1736112238383,2.9248,213.29,213.18,1.4063]
[1736112238586,7.43766,213.26,213.25,2.345]
[1736112239483,7.43766,213.26,213.19,10.39546]
[1736112240482,6.05689248,213.32,213.23,7.43766]
[1736112240685,10.01766,213.31,213.23,7.43766]
[1736112240893,7.43766,213.34,213.25,7.43766]
[1736112241288,7.43766,213.32,213.25,7.43766]
[1736112243584,7.43766,213.32,213.3,2.3444]
[1736112246088,7.43766,213.32,213.31,2.3443]
[1736112248799,2.58,213.33,213.28,2.3446]
[1736112248995,2.58,213.33,213.27,7.43766]
[1736112249197,7.43766,213.35,213.27,7.43766]
[1736112249892,2.58,213.36,213.34,2.344]
[1736112250096,2.58,213.39,213.29,7.43766]
[1736112250298,2.58,213.39,213.31,7.43766]
[1736112250299,7.43766,213.38,213.31,7.43766]
[1736112251504,7.43766,213.38,213.36,2.3437]
[1736112254302,2.3433,213.4,213.36,2.3437]
[1736112254507,2.58,213.4,213.31,7.43766]
[1736112254707,7.43766,213.39,213.31,7.43766]
[1736112255105,2.58,213.41,213.4,2.3432]
[1736112255403,10.01766,213.41,213.4,2.3432]
[1736112255808,2.58,213.46,213.44,2.3429]
[1736112256005,7.43766,213.45,213.44,2.3429]
[1736112256606,2.58,213.46,213.39,7.43766]
[1736112257106,10.01766,213.47,213.39,7.43766]
[1736112257504,10.01766,213.47,213.43,2.343]
[1736112258809,12.36026,213.47,213.43,2.343]
[1736112259411,9.78026,213.47,213.43,2.343]
[1736112262011,2.3426,213.47,213.43,2.343]
[1736112262214,7.43766,213.46,213.43,2.343]
[1736112270024,7.43766,213.46,213.44,2.3429]
[1736112270520,2.58,213.47,213.36,2.58]
[1736112270521,2.58,213.47,213.46,2.3427]
[1736112270714,2.3421,213.51,213.43,7.43766]
[1736112270917,1.3939,213.56,213.45,7.43766]
[1736112271113,7.43766,213.54,213.5,2.3421]
[1736112271725,7.43766,213.52,213.48,2.3424]
[1736112272114,2.3421,213.51,213.46,2.3426]
[1736112272324,7.43766,213.52,213.43,8.88326]
[1736112272921,9.77966,213.52,213.45,2.3427]
[1736112273124,9.77966,213.52,213.43,8.88326]
[1736112273325,7.43766,213.52,213.43,8.88326]
[1736112273526,2.3421,213.51,213.46,2.3426]
[1736112274628,2.3421,213.51,213.47,2.3425]
[1736112278827,2.9215,213.61,213.45,7.43766]
[1736112279029,9.77966,213.52,213.48,2.3424]
[1736112282630,2.58,213.56,213.47,7.43766]
[1736112282830,7.43766,213.54,213.47,7.43766]
[1736112283430,7.43766,213.54,213.51,2.342]
[1736112290044,9.77946,213.54,213.51,2.342]
[1736112291031,2.3419,213.53,213.5,2.3422]
[1736112291732,7.43766,213.52,213.5,2.3422]
[1736112292636,7.43766,213.52,213.49,2.3423]
[1736112292836,7.43766,213.5,213.44,10.36016]
[1736112293636,7.43766,213.5,213.47,2.3424]
[1736112293827,7.43766,213.5,213.44,10.36016]
[1736112294638,7.43766,213.5,213.48,2.3424]
[1736112296928,1.4567,213.61,213.48,7.43766]
[1736112297137,129.92865828,213.65,213.54,7.43766]
[1736112297437,137.36631828,213.65,213.61,2.341]
[1736112298038,7.43766,213.65,213.61,2.341]
[1736112298438,7.43766,213.65,213.58,7.43766]
[1736112298739,7.43766,213.61,213.54,14.47066]
[1736112299439,9.77866,213.61,213.55,2.3416]
[1736112300441,2.58,213.62,213.54,11.89066]
[1736112300639,10.01766,213.62,213.57,2.3414]
[1736112300835,2.58,213.62,213.54,11.89066]
[1736112301033,2.58,213.62,213.59,2.3412]
[1736112304449,9.77866,213.61,213.56,2.3416]
[1736112304642,7.43766,213.61,213.54,8.96416]
[1736112305446,7.43766,213.61,213.57,2.3414]
[1736112305948,7.43766,213.61,213.58,2.3413]
[1736112312650,2.3411,213.6,213.56,2.3415]
[1736112312848,7.43766,213.57,213.53,97.25037839]
[1736112313449,7.43766,213.57,213.55,2.3417]
[1736112314355,7.43766,213.57,213.54,2.3418]
[1736112315854,7.43766,213.57,213.55,2.3416]
[1736112316359,9.77886,213.59,213.55,2.3416]
[1736112316653,10.01766,213.62,213.58,2.3413]
[1736112317449,12.35856,213.62,213.58,2.3413]
[1736112318854,2.58,213.62,213.55,7.43766]
[1736112319057,2.58,213.62,213.6,2.3411]
[1736112321561,2.58,213.63,213.6,2.3411]
[1736112322360,4.9208,213.63,213.59,2.3412]
[1736112324164,7.43766,213.62,213.59,2.3412]
[1736112324666,9.77856,213.62,213.57,2.3413]
[1736112328768,2.8408,213.71,213.61,7.43766]
[1736112328969,2.58,213.7,213.63,7.43766]
[1736112329168,2.8408,213.71,213.63,7.43766]
[1736112329169,2.58,213.69,213.63,7.43766]
[1736112329664,4.9202,213.69,213.65,2.3406]
[1736112330273,4.9202,213.69,213.63,7.43766]
[1736112330473,4.9202,213.69,213.65,2.3406]
[1736112330878,2.58,213.69,213.67,2.3403]
[1736112331876,2.58,213.68,213.64,2.3407]
[1736112332278,2.58,213.68,213.66,2.3404]
[1736112333678,2.58,213.7,213.66,2.3404]
[1736112334075,9.77766,213.71,213.66,2.3404]
[1736112334279,2.58,213.7,213.66,2.3404]
[1736112335982,2.58,213.7,213.67,2.3404]
[1736112337081,2.58,213.71,213.68,2.3402]
[1736112342885,2.58,213.71,213.64,7.43766]
[1736112343086,4.9199,213.71,213.67,2.3403]
[1736112344594,2.3399,213.71,213.67,2.3403]
[1736112344793,7.43766,213.7,213.67,2.3403]
[1736112348892,7.43766,213.7,213.64,7.43766]
[1736112349094,9.77776,213.7,213.66,2.3405]
[1736112351797,162.41082285,213.86,213.6,2.58]
[1736112351798,2.8372,213.8,213.71,2.3399]
[1736112351987,7.43766,213.76,213.71,2.3399]
[1736112353400,9.77716,213.76,213.71,2.3399]
[1736112353599,7.43766,213.76,213.71,2.3399]
[1736112355299,2.58,213.75,213.71,2.3399]
[1736112355497,4.9195,213.75,213.71,2.3399]
[1736112357106,9.77736,213.74,213.69,2.3401]
[1736112357900,9.77736,213.74,213.7,2.34]
[1736112360299,7.43766,213.72,213.64,1.3886]
[1736112360502,7.43766,213.72,213.64,8.82626]
[1736112360701,7.43766,213.7,213.64,8.82626]
[1736112360903,10.01766,213.7,213.64,8.82626]
[1736112361102,10.01766,213.7,213.66,2.3404]
[1736112363003,12.35776,213.7,213.66,2.3404]
[1736112364706,7.43766,213.68,213.63,2.9837]
[1736112364907,7.43766,213.68,213.64,2.3407]
[1736112364908,7.43766,213.66,213.64,2.3407]
[1736112367504,7.43766,213.66,213.59,7.43766]
[1736112367909,2.58,213.65,213.59,7.43766]
[1736112368511,2.58,213.65,213.63,2.3408]
[1736112368908,2.58,213.65,213.59,7.43766]
[1736112369609,7.43766,213.64,213.61,2.3409]
[1736112369803,2.58,213.65,213.59,7.43766]
[1736112370814,7.43766,213.64,213.58,107.67953067]
[1736112372509,7.43766,213.64,213.61,2.341]
[1736112376213,7.43766,213.64,213.58,100.24187067]
[1736112376416,7.43766,213.64,213.62,2.3409]
[1736112376920,7.43766,213.64,213.6,2.3411]
[1736112377123,7.43766,213.62,213.6,2.3411]
[1736112381925,2.3407,213.64,213.6,2.3411]
[1736112382224,7.43766,213.62,213.6,2.3411]
[1736112391229,2.3411,213.61,213.5,2.3421]
[1736112391431,7.43766,213.57,213.51,7.43766]
[1736112391625,10.01766,213.57,213.51,7.43766]
[1736112392529,10.01766,213.57,213.56,2.3415]
[1736112407539,2.58,213.57,213.56,2.3415]
[1736112407734,2.58,213.59,213.53,7.43766]
[1736112407934,7.43766,213.61,213.53,7.43766]
[1736112408135,2.58,213.6,213.53,7.43766]
[1736112408334,2.58,213.6,213.55,7.43766]
[1736112409537,2.58,213.6,213.59,2.3412]
[1736112417840,4.9211,213.6,213.51,2.342]
[1736112418041,7.43766,213.56,213.48,2.58]
[1736112418242,2.58,213.55,213.48,7.43766]
[1736112418440,7.43766,213.54,213.48,7.43766]
[1736112418651,7.43766,213.54,213.53,2.3419]
[1736112419869,7.43766,213.54,213.47,4.2369]
[1736112420052,7.43766,213.54,213.52,2.342]
[1736112434855,7.43766,213.54,213.47,2.7915]
[1736112435056,7.43766,213.51,213.47,2.7915]
[1736112435355,2.58,213.5,213.47,2.7915]
[1736112436558,2.58,213.5,213.49,2.3423]
[1736112440553,10.01766,213.5,213.49,2.3423]
[1736112440753,10.01766,213.5,213.44,98.08452787]
[1736112440955,7.43766,213.48,213.46,2.3427]
[1736112441160,7.43766,213.48,213.44,98.08452787]
[1736112441161,7.43766,213.48,213.44,96.58712787]
[1736112441980,7.43766,213.48,213.45,2.3427]
[1736112442196,7.43766,213.48,213.44,96.58712787]
[1736112443476,7.43766,213.48,213.47,2.3426]
[1736112454267,10.01766,213.48,213.47,2.3426]
[1736112469280,10.01766,213.48,213.45,2.3427]
[1736112469478,7.43766,213.46,213.45,2.3427]
[1736112470876,10.01766,213.48,213.45,2.3427]
[1736112471478,10.01766,213.48,213.46,2.3426]
[1736112477786,10.01766,213.48,213.4,10.31896]
[1736112477787,10.01766,213.48,213.45,2.3427]
[1736112481633,7.43766,213.46,213.45,2.3427]
[1736112484728,7.43766,213.46,213.4,2.8813]
[1736112485022,7.43766,213.43,213.36,6.52731503]
[1736112485229,2.58,213.42,213.36,6.52731503]
[1736112485711,2.58,213.42,213.4,2.3432]
[1736112486109,2.58,213.42,213.35,11.82966]
[1736112486416,2.58,213.42,213.41,2.3432]
[1736112493299,7.43766,213.46,213.43,2.3429]
[1736112493500,2.58,213.45,213.39,7.43766]
[1736112493906,2.58,213.45,213.41,7.43766]
[1736112494203,7.43766,213.48,213.41,7.43766]
[1736112494405,2.58,213.47,213.45,2.3427]
[1736112496911,7.43766,213.46,213.44,2.3429]
[1736112499318,2.58,213.45,213.44,2.3429]
[1736112549947,10.01766,213.45,213.44,2.3429]
[1736112551449,7.43766,213.45,213.44,2.3429]
[1736112551747,10.01766,213.45,213.44,2.3429]
[1736112553545,10.01766,213.45,213.35,47.18555828]
[1736112553745,7.43766,213.43,213.37,7.43766]
[1736112553947,7.43766,213.43,213.37,110.14290808]
[1736112555451,7.43766,213.43,213.42,2.343]
[1736112567279,10.01766,213.45,213.43,2.3429]
[1736112568966,2.58,213.45,213.43,2.3429]
[1736112569168,10.01766,213.45,213.43,2.3429]
[1736112571670,12.36046,213.45,213.41,2.3432]
[1736112571870,7.43766,213.42,213.41,2.3432]
[1736112572482,7.43766,213.42,213.4,2.3433]
[1736112572763,7.43766,213.41,213.4,2.3433]
[1736112573865,9.78096,213.41,213.31,11.77336]
[1736112574167,7.43766,213.37,213.31,11.77336]
[1736112574374,7.43766,213.37,213.36,2.3437]
[1736112575870,7.43766,213.37,213.33,103.87159867]
[1736112576074,7.43766,213.37,213.35,2.3438]
[1736112582471,2.56,213.4,213.36,2.3437]
[1736112582774,2.56,213.4,213.33,103.87159867]
[1736112583174,2.56,213.4,213.37,2.3436]
[1736112583374,9.99766,213.4,213.37,2.3436]
[1736112598183,2.56,213.39,213.37,2.3436]
[1736112600182,2.56,213.39,213.33,103.87159867]
[1736112600387,7.43766,213.38,213.36,2.3437]
[1736112600984,7.43766,213.38,213.35,2.3439]
[1736112601190,7.43766,213.36,213.33,103.87159867]
[1736112602490,7.43766,213.36,213.33,106.21569867]
[1736112602691,7.43766,213.34,213.33,106.21569867]
[1736112602889,9.99766,213.34,213.33,106.21569867]
[1736112603992,9.99766,213.34,213.33,103.87159867]
[1736112607398,4.4835,213.46,213.33,103.87159867]
[1736112607592,3.31656155,213.45,213.39,2.3434]
[1736112607798,7.43766,213.42,213.39,2.3434]
[1736112610394,4.9029,213.44,213.39,2.3434]
[1736112610596,7.43766,213.42,213.39,2.3434]
[1736112610790,2.56,213.41,213.39,2.3434]
[1736112613397,2.56,213.43,213.38,7.43766]
[1736112614094,2.56,213.43,213.39,2.3434]
[1736112614302,2.56,213.43,213.38,7.43766]
[1736112615197,2.56,213.43,213.41,2.3431]
[1736112615497,7.43766,213.45,213.41,2.3431]
[1736112615697,2.56,213.44,213.41,2.3431]
[1736112616094,7.43766,213.45,213.41,2.3431]
[1736112616300,2.56,213.44,213.41,2.3431]
[1736112623205,2.56,213.46,213.4,7.43766]
[1736112623407,2.56,213.47,213.4,7.43766]
[1736112623706,2.56,213.47,213.44,2.3428]
[1736112624702,7.43766,213.46,213.4,7.43766]
[1736112624907,7.43766,213.44,213.4,2.3432]
[1736112626510,9.78056,213.44,213.4,2.3432]
[1736112627408,9.78056,213.44,213.41,2.3432]
[1736112628807,7.43766,213.44,213.41,2.3432]
[1736112635013,7.43766,213.42,213.38,2.3435]
[1736112635209,7.43766,213.39,213.38,2.3435]
[1736112635407,7.43766,213.39,213.37,2.3436]
[1736112635605,7.43766,213.37,213.33,2.9972]
[1736112636018,2.56,213.36,213.29,8.91016]
[1736112637511,2.56,213.36,213.35,2.3438]
[1736112648121,1.4334,213.5,213.32,7.43766]
[1736112648422,7.43766,213.41,213.39,2.3433]
[1736112648623,2.56,213.4,213.39,2.3433]
[1736112654619,1.4334,213.5,213.36,7.43766]
[1736112654821,2.3426,213.47,213.38,7.43766]
[1736112655024,7.43766,213.45,213.38,7.43766]
[1736112655225,2.56,213.44,213.38,7.43766]
[1736112656427,2.56,213.44,213.43,2.343]
[1736112657230,7.43766,213.45,213.43,2.343]
[1736112657529,2.56,213.44,213.43,2.343]
[1736112659229,7.43766,213.45,213.43,2.343]
[1736112659430,2.56,213.44,213.43,2.343]
[1736112659932,7.43766,213.45,213.43,2.343]
[1736112660130,12.34026,213.47,213.43,2.343]
[1736112661637,7.43766,213.45,213.43,2.343]
[1736112664433,7.43766,213.45,213.38,7.43766]
[1736112664634,7.43766,213.45,213.42,2.3431]
[1736112665631,7.43766,213.45,213.38,7.43766]
[1736112665837,9.78046,213.45,213.41,2.3432]
[1736112666226,7.43766,213.43,213.41,2.3432]
[1736112671047,2.56,213.47,213.36,8.96296]